[Event "Croatian-ch Youth U13 2022"]
[Site "Trogir"]
[Date "2022.06.22"]
[Round "1.1"]
[White "Pehar, Borna"]
[Black "Biondic, Slavko"]
[Result "1-0"]
[ECO "B76"]
[WhiteElo "1756"]
[BlackElo "1017"]
[Annotator "NA RC"]
[PlyCount "35"]
[EventDate "2022.06.22"]
[EventType "swiss"]
[EventCountry "CRO"]
[SourceTitle "playchess.com"]
[Source "ChessBase"]
[SourceQuality "1"]
[TimeControl "5400+30"]

1. e4 {[%emt 0:00:12]} c5 {[%emt 0:00:20]} 2. Nf3 {[%emt 0:00:12]} d6 {[%emt 0:00:47]} 3. d4 {[%emt 0:00:41]} cxd4 {[%emt 0:00:36]} 4. Nxd4 {[%emt 0:00:13]} Nf6 {[%emt 0:00:44]} 5. Nc3 {[%emt 0:00:10]} g6 {[%emt 0:00:30]} 6. Be3 {[%emt 0:00:22]} Bg7 {[%emt 0:00:58]} 7. f3 {[%emt 0:00:30]} O-O {[%emt 0:01:43]} 8. Qd2 {[%emt 0:00:18]} Re8 {[%emt 0:01:16]} 9. O-O-O {[%emt 0:01:33]} Bd7 {[%emt 0:01:26]} 10. g4 {[%emt 0:01:10]} Bc6 {[%emt 0:01:55]} 11. h4 {[%emt 0:04:43]} Qc8 {[%emt 0:04:36]} 12. h5 {[%emt 0:02:10]} a6 {[%emt 0:01:18]} 13. hxg6 {[%emt 0:00:45]} fxg6 {[%emt 0:03:43]} 14. Bc4+ {[%emt 0:01:47]} Kh8 {[%emt 0:00:47]} 15. g5 {[%emt 0:01:39]} Nfd7 {[%emt 0:03:18]} 16. Rxh7+ {[%emt 0:00:53]} Kxh7 {[%emt 0:00:30]} 17. Qh2+ Bh6 {[%emt 0:00:30]} 18. Qxh6# {[%emt 0:01:00]} 1-0

[Event "Croatian-ch Youth U13 2022"]
[Site "Trogir"]
[Date "2022.06.22"]
[Round "2.1"]
[White "Majerovic, Mislav"]
[Black "Pehar, Borna"]
[Result "0-1"]
[ECO "D91"]
[WhiteElo "1270"]
[BlackElo "1756"]
[Annotator "NA RC"]
[PlyCount "60"]
[EventDate "2022.06.22"]
[EventType "swiss"]
[EventCountry "CRO"]
[SourceTitle "playchess.com"]
[Source "ChessBase"]
[SourceQuality "1"]
[TimeControl "5400+30"]

1. c4 {[%emt 0:00:02]} Nf6 {[%emt 0:00:47]} 2. Nc3 {[%emt 0:00:18]} g6 {[%emt 0:00:19]} 3. d4 {[%emt 0:00:27]} d5 {[%emt 0:00:43]} 4. Nf3 {[%emt 0:00:43]} Bg7 {[%emt 0:01:06]} 5. Bg5 {[%emt 0:00:44]} Ne4 {[%emt 0:04:26]} 6. e3 {[%emt 0:04:17]} Nxg5 {[%emt 0:08:34]} 7. Nxg5 {[%emt 0:00:46]} e5 {[%emt 0:01:41]} 8. Nf3 {[%emt 0:03:14]} exd4 {[%emt 0:03:43]} 9. exd4 {[%emt 0:00:54]} dxc4 {[%emt 0:02:38]} 10. Bxc4 {[%emt 0:00:36]} O-O {[%emt 0:00:42]} 11. O-O {[%emt 0:00:15]} Bg4 {[%emt 0:00:54]} 12. d5 {[%emt 0:01:36]} Nd7 {[%emt 0:02:30]} 13. h3 {[%emt 0:08:13]} Ne5 {[%emt 0:04:36]} 14. Be2 {[%emt 0:00:00]} Bxf3 {[%emt 0:01:26]} 15. Bxf3 {[%emt 0:00:00]} Nc4 {[%emt 0:00:33]} 16. Qe2 {[%emt 0:00:00]} Nd6 {[%emt 0:00:58]} 17. Rac1 {[%emt 0:01:12]} Re8 {[%emt 0:02:19]} 18. Qd3 {[%emt 0:01:30]} h5 {[%emt 0:07:23]} 19. b3 {[%emt 0:02:33]} Qd7 {[%emt 0:00:53]} 20. Rfe1 {[%emt 0:02:46]} a6 {[%emt 0:01:25]} 21. Na4 {[%emt 0:02:07]} Qb5 {[%emt 0:03:57]} 22. Nc5 {[%emt 0:05:18]} Rxe1+ {[%emt 0:01:21]} 23. Rxe1 {[%emt 0:00:34]} Qxc5 {[%emt 0:00:12]} 24. Re7 {[%emt 0:04:50]} Nf5 {[%emt 0:01:20]} 25. Re1 {[%emt 0:02:05]} Bd4 {[%emt 0:00:55]} 26. Re2 {[%emt 0:01:29]} Qc1+ {[%emt 0:02:53]} 27. Kh2 {[%emt 0:00:29]} h4 {[%emt 0:01:20]} 28. Rc2 {[%emt 0:03:06]} Qf4+ {[%emt 0:00:47]} 29. Kh1 {[%emt 0:00:49]} Re8 {[%emt 0:00:27]} 30. Re2 {[%emt 0:02:04]} Be5 {[%emt 0:00:34]} 0-1

[Event "Croatian-ch Youth U13 2022"]
[Site "Trogir"]
[Date "2022.06.22"]
[Round "2.2"]
[White "Poljan, Max"]
[Black "Juric, Vito"]
[Result "1-0"]
[ECO "B33"]
[WhiteElo "1618"]
[BlackElo "1230"]
[Annotator "NA RC"]
[PlyCount "69"]
[EventDate "2022.06.22"]
[EventType "swiss"]
[EventCountry "CRO"]
[SourceTitle "playchess.com"]
[Source "ChessBase"]
[SourceQuality "1"]
[TimeControl "5400+30"]

1. e4 {[%emt 0:00:14]} c5 {[%emt 0:00:35]} 2. Nf3 {[%emt 0:00:06]} Nc6 {[%emt 0:00:40]} 3. d4 {[%emt 0:00:07]} cxd4 {[%emt 0:00:50]} 4. Nxd4 {[%emt 0:00:05]} Nf6 {[%emt 0:01:22]} 5. Nc3 {[%emt 0:00:10]} e5 {[%emt 0:05:23]} 6. Ndb5 {[%emt 0:00:05]} d6 {[%emt 0:01:22]} 7. Nd5 {[%emt 0:00:04]} Nxd5 {[%emt 0:07:01]} 8. exd5 {[%emt 0:04:56]} Nb8 {[%emt 0:05:22]} 9. a4 {[%emt 0:00:00]} Bf5 {[%emt 0:01:31]} 10. Be2 {[%emt 0:00:00]} a6 {[%emt 0:02:40]} 11. Na3 {[%emt 0:01:03]} Nd7 {[%emt 0:02:12]} 12. O-O {[%emt 0:03:00]} Be7 {[%emt 0:03:19]} 13. Be3 {[%emt 0:03:09]} O-O {[%emt 0:04:12]} 14. c3 {[%emt 0:02:12]} h6 {[%emt 0:03:13]} 15. Nc4 {[%emt 0:01:56]} Rb8 {[%emt 0:03:37]} 16. a5 {[%emt 0:00:30]} Re8 {[%emt 0:10:03]} 17. b4 {[%emt 0:04:56]} Qc7 {[%emt 0:11:50]} 18. Qb3 {[%emt 0:03:55]} e4 {[%emt 0:02:04]} 19. Nb6 {[%emt 0:03:24]} Nxb6 {[%emt 0:02:06]} 20. Bxb6 {[%emt 0:00:11]} Qd7 {[%emt 0:00:56]} 21. c4 {[%emt 0:02:30]} Rbc8 {[%emt 0:01:56]} 22. Rac1 {[%emt 0:06:26]} Bd8 {[%emt 0:03:30]} 23. c5 {[%emt 0:01:28]} Bxb6 {[%emt 0:01:11]} 24. axb6 {[%emt 0:00:10]} dxc5 {[%emt 0:03:06]} 25. bxc5 {[%emt 0:00:22]} Red8 {[%emt 0:06:50]} 26. Rfd1 {[%emt 0:02:27]} Qe7 {[%emt 0:02:21]} 27. c6 {[%emt 0:04:35]} a5 {[%emt 0:06:23]} 28. c7 {[%emt 0:04:22]} Rd7 {[%emt 0:01:35]} 29. Ba6 {[%emt 0:02:04]} Rd6 {[%emt 0:03:05]} 30. Bxb7 {[%emt 0:00:37]} Qe8 {[%emt 0:00:57]} 31. Bxc8 {[%emt 0:00:24]} Bxc8 {[%emt 0:00:32]} 32. b7 {[%emt 0:00:08]} Bxb7 {[%emt 0:01:48]} 33. Qxb7 {[%emt 0:00:02]} Kh7 {[%emt 0:01:27]} 34. c8=Q {[%emt 0:00:12]} Qxc8 {[%emt 0:00:13]} 35. Qxc8 {[%emt 0:00:09]} 1-0

[Event "Croatian-ch Youth U13 2022"]
[Site "Trogir"]
[Date "2022.06.22"]
[Round "2.3"]
[White "Ercegovic, Josip"]
[Black "Tadic, Jure"]
[Result "0-1"]
[ECO "C52"]
[WhiteElo "1198"]
[BlackElo "1565"]
[Annotator "NA RC"]
[PlyCount "60"]
[EventDate "2022.06.22"]
[EventType "swiss"]
[EventCountry "CRO"]
[SourceTitle "playchess.com"]
[Source "ChessBase"]
[SourceQuality "1"]
[TimeControl "5400+30"]

1. e4 {[%emt 0:00:03]} e5 {[%emt 0:00:16]} 2. Nf3 {[%emt 0:00:06]} Nc6 {[%emt 0:00:19]} 3. Bc4 {[%emt 0:00:14]} Bc5 {[%emt 0:00:27]} 4. b4 {[%emt 0:00:07]} Bxb4 {[%emt 0:00:16]} 5. c3 {[%emt 0:00:07]} Ba5 {[%emt 0:00:24]} 6. O-O {[%emt 0:01:31]} Nf6 {[%emt 0:04:08]} 7. Re1 {[%emt 0:02:32]} O-O {[%emt 0:01:32]} 8. d4 {[%emt 0:02:27]} exd4 {[%emt 0:03:46]} 9. Nxd4 {[%emt 0:01:53]} Nxd4 {[%emt 0:04:23]} 10. Qxd4 {[%emt 0:00:30]} d6 {[%emt 0:00:50]} 11. Bg5 {[%emt 0:01:45]} h6 {[%emt 0:00:48]} 12. Bh4 {[%emt 0:01:06]} g5 {[%emt 0:07:57]} 13. Bg3 {[%emt 0:00:32]} Nh5 {[%emt 0:00:50]} 14. Re3 {[%emt 0:04:35]} Bb6 {[%emt 0:00:31]} 15. Qd3 {[%emt 0:09:00]} Bxe3 {[%emt 0:00:16]} 16. Qxe3 {[%emt 0:00:09]} Nxg3 {[%emt 0:00:46]} 17. Qxg3 {[%emt 0:00:06]} Qf6 {[%emt 0:01:38]} 18. Nd2 {[%emt 0:01:03]} Be6 {[%emt 0:01:36]} 19. Bb3 {[%emt 0:01:33]} Rad8 {[%emt 0:02:25]} 20. Rf1 {[%emt 0:02:24]} Qf4 {[%emt 0:00:55]} 21. Qd3 {[%emt 0:01:31]} Bxb3 {[%emt 0:03:17]} 22. axb3 {[%emt 0:01:09]} c6 {[%emt 0:01:21]} 23. g3 {[%emt 0:00:48]} Qf6 {[%emt 0:04:11]} 24. c4 {[%emt 0:01:17]} d5 {[%emt 0:03:46]} 25. cxd5 {[%emt 0:01:53]} cxd5 {[%emt 0:00:10]} 26. Qe3 {[%emt 0:00:11]} dxe4 {[%emt 0:03:07]} 27. Nxe4 {[%emt 0:00:26]} Qd4 {[%emt 0:00:18]} 28. Qxd4 {[%emt 0:03:44]} Rxd4 {[%emt 0:00:11]} 29. Re1 {[%emt 0:00:19]} Kg7 {[%emt 0:01:59]} 30. g4 {[%emt 0:10:03]} Re8 {[%emt 0:03:15]} 0-1

[Event "Croatian-ch Youth U13 2022"]
[Site "Trogir"]
[Date "2022.06.22"]
[Round "2.4"]
[White "Delibasic, Dominik"]
[Black "Matkovic, Mihael"]
[Result "1-0"]
[ECO "C78"]
[WhiteElo "1523"]
[BlackElo "1215"]
[Annotator "NA RC"]
[PlyCount "47"]
[EventDate "2022.06.22"]
[EventType "swiss"]
[EventCountry "CRO"]
[SourceTitle "playchess.com"]
[Source "ChessBase"]
[SourceQuality "1"]
[TimeControl "5400+30"]

1. e4 {[%emt 0:00:08]} e5 {[%emt 0:00:08]} 2. Nf3 {[%emt 0:00:07]} Nc6 {[%emt 0:00:09]} 3. Bb5 {[%emt 0:00:07]} a6 {[%emt 0:00:13]} 4. Ba4 {[%emt 0:00:05]} Nf6 {[%emt 0:00:41]} 5. O-O {[%emt 0:00:49]} Bc5 {[%emt 0:00:53]} 6. Nxe5 {[%emt 0:01:04]} Nxe4 {[%emt 0:07:01]} 7. Qe2 {[%emt 0:02:01]} Nxe5 {[%emt 0:27:37]} 8. Qxe4 {[%emt 0:00:49]} Qe7 {[%emt 0:03:31]} 9. d4 {[%emt 0:03:30]} Bxd4 {[%emt 0:02:02]} 10. Qxd4 {[%emt 0:00:45]} O-O {[%emt 0:00:41]} 11. Bf4 {[%emt 0:02:03]} Ng6 {[%emt 0:00:58]} 12. Bxc7 {[%emt 0:02:05]} Re8 {[%emt 0:03:33]} 13. Nc3 {[%emt 0:00:36]} b5 {[%emt 0:02:36]} 14. Bb3 {[%emt 0:02:07]} Bb7 {[%emt 0:08:17]} 15. Bd6 {[%emt 0:02:41]} Qg5 {[%emt 0:00:27]} 16. Bg3 {[%emt 0:01:09]} h5 {[%emt 0:03:39]} 17. h4 {[%emt 0:08:14]} Qf5 {[%emt 0:07:12]} 18. Rfe1 {[%emt 0:04:13]} Ne7 {[%emt 0:03:38]} 19. Re5 {[%emt 0:00:00]} Qg6 {[%emt 0:02:32]} 20. Rae1 {[%emt 0:00:00]} Qc6 {[%emt 0:04:14]} 21. Bd5 {[%emt 0:00:00]} Nxd5 {[%emt 0:01:21]} 22. Rxe8+ {[%emt 0:00:00]} Rxe8 {[%emt 0:00:45]} 23. Rxe8+ {[%emt 0:00:00]} Kh7 {[%emt 0:00:15]} 24. Qxd5 {[%emt 0:00:00]} 1-0

[Event "Croatian-ch Youth U13 2022"]
[Site "Trogir"]
[Date "2022.06.22"]
[Round "2.5"]
[White "Rehak, Bozidar"]
[Black "Petrus, Adrian"]
[Result "0-1"]
[ECO "A46"]
[WhiteElo "1186"]
[BlackElo "1526"]
[Annotator "NA RC"]
[PlyCount "88"]
[EventDate "2022.06.22"]
[EventType "swiss"]
[EventCountry "CRO"]
[SourceTitle "playchess.com"]
[Source "ChessBase"]
[SourceQuality "1"]
[TimeControl "5400+30"]

1. d4 {[%emt 0:00:12]} Nf6 {[%emt 0:00:13]} 2. Bf4 {[%emt 0:00:10]} e6 {[%emt 0:00:19]} 3. Nf3 {[%emt 0:00:14]} Be7 {[%emt 0:00:59]} 4. e3 {[%emt 0:00:25]} Nh5 {[%emt 0:00:21]} 5. Bg3 {[%emt 0:00:43]} Nxg3 {[%emt 0:00:24]} 6. hxg3 {[%emt 0:00:11]} b6 {[%emt 0:00:58]} 7. Nbd2 {[%emt 0:00:28]} Bb7 {[%emt 0:00:27]} 8. Bd3 {[%emt 0:00:21]} d6 {[%emt 0:00:52]} 9. Qe2 {[%emt 0:00:41]} h6 {[%emt 0:01:44]} 10. a3 {[%emt 0:01:30]} Nd7 {[%emt 0:00:17]} 11. O-O-O {[%emt 0:02:43]} c5 {[%emt 0:01:14]} 12. Rhg1 {[%emt 0:00:45]} d5 {[%emt 0:00:23]} 13. Bb5 {[%emt 0:02:15]} c4 {[%emt 0:03:42]} 14. Ne5 {[%emt 0:00:32]} Bc8 {[%emt 0:01:16]} 15. Qf3 {[%emt 0:01:44]} O-O {[%emt 0:00:38]} 16. Bxd7 {[%emt 0:01:22]} Bxd7 {[%emt 0:00:09]} 17. Rh1 {[%emt 0:00:45]} c3 {[%emt 0:00:48]} 18. Nb3 {[%emt 0:00:57]} cxb2+ {[%emt 0:00:49]} 19. Kxb2 {[%emt 0:00:10]} Ba4 {[%emt 0:02:16]} 20. Qg4 {[%emt 0:01:47]} Qd6 {[%emt 0:02:14]} 21. Ra1 {[%emt 0:00:51]} f5 {[%emt 0:01:59]} 22. Qf3 {[%emt 0:04:43]} Rac8 {[%emt 0:02:06]} 23. Ng6 {[%emt 0:01:48]} Qc7 {[%emt 0:02:43]} 24. Nxe7+ {[%emt 0:00:20]} Qxe7 {[%emt 0:00:03]} 25. Qf4 {[%emt 0:02:02]} Qd7 {[%emt 0:01:10]} 26. Rac1 {[%emt 0:03:15]} Qc6 {[%emt 0:00:48]} 27. c3 {[%emt 0:01:04]} Rf7 {[%emt 0:00:53]} 28. Rxh6 {[%emt 0:06:32]} gxh6 {[%emt 0:00:44]} 29. Qxh6 {[%emt 0:00:08]} Bxb3 {[%emt 0:00:54]} 30. Kxb3 {[%emt 0:00:19]} a5 {[%emt 0:00:49]} 31. Rh1 {[%emt 0:00:41]} a4+ {[%emt 0:02:11]} 32. Ka2 {[%emt 0:00:18]} Rg7 {[%emt 0:02:50]} 33. Qh8+ {[%emt 0:01:55]} Kf7 {[%emt 0:00:42]} 34. Qh5+ {[%emt 0:00:10]} Ke7 {[%emt 0:00:22]} 35. Qh4+ {[%emt 0:00:33]} Kd7 {[%emt 0:00:17]} 36. Qf6 {[%emt 0:00:33]} Re7 {[%emt 0:00:09]} 37. Qe5 {[%emt 0:01:37]} Qc4+ {[%emt 0:00:08]} 38. Ka1 {[%emt 0:00:07]} Qxc3+ {[%emt 0:00:04]} 39. Ka2 {[%emt 0:00:12]} Qb3+ {[%emt 0:00:11]} 40. Ka1 {[%emt 0:00:16]} Rc2 {[%emt 0:00:13]} 41. Qxe6+ {[%emt 0:00:39]} Kxe6 {[%emt 0:00:44]} 42. Rh6+ {[%emt 0:00:06]} Kd7 {[%emt 0:00:01]} 43. Rd6+ {[%emt 0:00:14]} Kxd6 {[%emt 0:00:27]} 44. e4 {[%emt 0:00:11]} Qb2# {[%emt 0:00:15]} 0-1

[Event "Croatian-ch Youth U13 2022"]
[Site "Trogir"]
[Date "2022.06.22"]
[Round "2.6"]
[White "Kresic, Vid"]
[Black "Perdic, Arijan"]
[Result "1-0"]
[ECO "D37"]
[WhiteElo "1459"]
[BlackElo "1149"]
[Annotator "NA RC"]
[PlyCount "95"]
[EventDate "2022.06.22"]
[EventType "swiss"]
[EventCountry "CRO"]
[SourceTitle "playchess.com"]
[Source "ChessBase"]
[SourceQuality "1"]
[TimeControl "5400+30"]

1. e4 {[%emt 0:00:14]} c6 {[%emt 0:00:10]} 2. d4 {[%emt 0:00:58]} d5 {[%emt 0:00:11]} 3. exd5 {[%emt 0:00:33]} cxd5 {[%emt 0:00:10]} 4. c4 {[%emt 0:00:47]} Nf6 {[%emt 0:00:25]} 5. Nc3 {[%emt 0:00:43]} e6 {[%emt 0:00:28]} 6. Nf3 {[%emt 0:00:32]} Be7 {[%emt 0:00:38]} 7. Bf4 {[%emt 0:01:01]} Nc6 {[%emt 0:00:53]} 8. cxd5 {[%emt 0:02:28]} Nxd5 {[%emt 0:00:13]} 9. Nxd5 {[%emt 0:00:07]} Qxd5 {[%emt 0:00:39]} 10. Be2 {[%emt 0:01:14]} O-O {[%emt 0:02:04]} 11. O-O {[%emt 0:00:27]} b6 {[%emt 0:01:31]} 12. b3 {[%emt 0:02:34]} Bf6 {[%emt 0:03:12]} 13. Be5 {[%emt 0:02:06]} Bxe5 {[%emt 0:01:38]} 14. dxe5 {[%emt 0:00:49]} Rd8 {[%emt 0:02:47]} 15. Qxd5 {[%emt 0:02:32]} Rxd5 {[%emt 0:00:36]} 16. Rfd1 {[%emt 0:00:50]} Ne7 {[%emt 0:01:48]} 17. Bc4 {[%emt 0:01:01]} Rxd1+ {[%emt 0:00:36]} 18. Rxd1 {[%emt 0:00:06]} Bb7 {[%emt 0:00:24]} 19. Rd7 {[%emt 0:11:40]} Bxf3 {[%emt 0:01:09]} 20. Rxe7 {[%emt 0:00:41]} Kf8 {[%emt 0:03:21]} 21. Rd7 {[%emt 0:01:17]} Ke8 {[%emt 0:01:56]} 22. Bb5 {[%emt 0:01:37]} a6 {[%emt 0:01:11]} 23. Rd3+ {[%emt 0:01:11]} axb5 {[%emt 0:00:48]} 24. gxf3 {[%emt 0:01:09]} Rxa2 {[%emt 0:00:31]} 25. Kg2 {[%emt 0:00:58]} Re2 {[%emt 0:01:06]} 26. f4 {[%emt 0:01:28]} g5 {[%emt 0:04:25]} 27. fxg5 {[%emt 0:02:28]} Rxe5 {[%emt 0:00:12]} 28. f4 {[%emt 0:00:06]} Rd5 {[%emt 0:00:33]} 29. Rxd5 {[%emt 0:06:53]} exd5 {[%emt 0:00:07]} 30. Kf3 {[%emt 0:00:01]} Ke7 {[%emt 0:00:33]} 31. Ke3 {[%emt 0:00:11]} Ke6 {[%emt 0:01:27]} 32. Kd4 {[%emt 0:05:44]} Kf5 {[%emt 0:00:30]} 33. Kxd5 {[%emt 0:08:10]} Kxf4 {[%emt 0:00:02]} 34. h4 {[%emt 0:02:37]} Kg4 {[%emt 0:00:06]} 35. Ke5 {[%emt 0:05:13]} Kxh4 {[%emt 0:01:51]} 36. Kf5 {[%emt 0:01:56]} Kh5 {[%emt 0:00:23]} 37. b4 {[%emt 0:00:18]} h6 {[%emt 0:01:09]} 38. gxh6 {[%emt 0:00:41]} Kxh6 {[%emt 0:00:02]} 39. Kf6 {[%emt 0:00:08]} Kh5 {[%emt 0:00:12]} 40. Kxf7 {[%emt 0:00:05]} Kg5 {[%emt 0:00:13]} 41. Ke6 {[%emt 0:00:10]} Kf4 {[%emt 0:00:02]} 42. Kd5 {[%emt 0:00:23]} Ke3 {[%emt 0:00:15]} 43. Kc6 {[%emt 0:00:35]} Kd4 {[%emt 0:00:20]} 44. Kxb6 {[%emt 0:00:25]} Kd5 {[%emt 0:01:04]} 45. Kxb5 {[%emt 0:00:08]} Kd6 {[%emt 0:00:02]} 46. Kb6 {[%emt 0:00:20]} Kd7 {[%emt 0:00:03]} 47. Kb7 {[%emt 0:00:22]} Kd8 {[%emt 0:00:02]} 48. b5 {[%emt 0:00:09]} 1-0

[Event "Croatian-ch Youth U13 2022"]
[Site "Trogir"]
[Date "2022.06.22"]
[Round "2.7"]
[White "Radalj, Niko"]
[Black "Miletic, Ivan"]
[Result "1-0"]
[ECO "B30"]
[WhiteElo "1179"]
[BlackElo "1461"]
[Annotator "NA RC"]
[PlyCount "67"]
[EventDate "2022.06.22"]
[EventType "swiss"]
[EventCountry "CRO"]
[SourceTitle "playchess.com"]
[Source "ChessBase"]
[SourceQuality "1"]
[TimeControl "5400+30"]

1. e4 {[%emt 0:01:42]} c5 {[%emt 0:00:16]} 2. Nf3 {[%emt 0:00:11]} Nc6 {[%emt 0:00:22]} 3. Nc3 {[%emt 0:01:01]} g6 {[%emt 0:00:50]} 4. Bc4 {[%emt 0:01:12]} Bg7 {[%emt 0:00:53]} 5. d3 {[%emt 0:01:35]} d6 {[%emt 0:00:58]} 6. O-O {[%emt 0:02:44]} Nf6 {[%emt 0:00:56]} 7. Be3 {[%emt 0:02:29]} O-O {[%emt 0:01:25]} 8. h3 {[%emt 0:02:15]} a6 {[%emt 0:05:14]} 9. a3 {[%emt 0:00:50]} b5 {[%emt 0:00:11]} 10. Ba2 {[%emt 0:00:08]} Bb7 {[%emt 0:00:07]} 11. Nh2 {[%emt 0:02:23]} Nd4 {[%emt 0:17:36]} 12. Bxd4 {[%emt 0:02:37]} cxd4 {[%emt 0:00:23]} 13. Ne2 {[%emt 0:00:38]} e5 {[%emt 0:00:14]} 14. f4 {[%emt 0:01:03]} Rc8 {[%emt 0:00:40]} 15. f5 {[%emt 0:01:59]} d5 {[%emt 0:00:40]} 16. fxg6 {[%emt 0:01:13]} hxg6 {[%emt 0:03:15]} 17. exd5 {[%emt 0:01:30]} Nxd5 {[%emt 0:00:40]} 18. Bxd5 {[%emt 0:03:04]} Qxd5 {[%emt 0:00:47]} 19. Rf2 {[%emt 0:04:19]} Bh6 {[%emt 0:00:32]} 20. Ng4 {[%emt 0:00:58]} Bg5 {[%emt 0:01:11]} 21. Qf1 {[%emt 0:02:12]} f5 {[%emt 0:01:32]} 22. h4 {[%emt 0:02:59]} Bxh4 {[%emt 0:01:03]} 23. Nh6+ {[%emt 0:00:38]} Kg7 {[%emt 0:01:10]} 24. Rf3 {[%emt 0:00:15]} Kxh6 {[%emt 0:01:09]} 25. Rh3 {[%emt 0:00:09]} g5 {[%emt 0:03:10]} 26. g3 {[%emt 0:00:42]} Rg8 {[%emt 0:00:19]} 27. Kh2 {[%emt 0:01:06]} Kh5 {[%emt 0:00:36]} 28. gxh4 {[%emt 0:00:56]} gxh4 {[%emt 0:00:54]} 29. Qxf5+ {[%emt 0:00:20]} Rg5 {[%emt 0:00:27]} 30. Ng3+ {[%emt 0:00:36]} Kh6 {[%emt 0:02:19]} 31. Qf6+ {[%emt 0:01:35]} Kh7 {[%emt 0:00:46]} 32. Rxh4+ {[%emt 0:00:22]} Rh5 {[%emt 0:01:28]} 33. Rxh5+ {[%emt 0:00:16]} Kg8 {[%emt 0:00:09]} 34. Rh8# {[%emt 0:00:05]} 1-0

[Event "Croatian-ch Youth U13 2022"]
[Site "Trogir"]
[Date "2022.06.22"]
[Round "2.8"]
[White "Mandaric, Duje"]
[Black "Brnadic, Grga"]
[Result "1-0"]
[ECO "B22"]
[WhiteElo "1333"]
[BlackElo "1087"]
[Annotator "NA RC"]
[PlyCount "79"]
[EventDate "2022.06.22"]
[EventType "swiss"]
[EventCountry "CRO"]
[SourceTitle "playchess.com"]
[Source "ChessBase"]
[SourceQuality "1"]
[TimeControl "5400+30"]

1. e4 {[%emt 0:00:03]} c5 {[%emt 0:00:03]} 2. c3 {[%emt 0:00:05]} d6 {[%emt 0:00:05]} 3. d4 {[%emt 0:00:38]} Nf6 {[%emt 0:00:07]} 4. dxc5 {[%emt 0:00:56]} Nc6 {[%emt 0:00:10]} 5. cxd6 {[%emt 0:01:01]} Nxe4 {[%emt 0:00:37]} 6. Nf3 {[%emt 0:01:26]} Nxd6 {[%emt 0:00:28]} 7. Be2 {[%emt 0:00:40]} g6 {[%emt 0:00:24]} 8. O-O {[%emt 0:01:01]} Bg7 {[%emt 0:00:15]} 9. Be3 {[%emt 0:01:36]} Bf5 {[%emt 0:00:43]} 10. Re1 {[%emt 0:02:52]} O-O {[%emt 0:01:13]} 11. Nbd2 {[%emt 0:01:53]} Ne4 {[%emt 0:02:59]} 12. Nxe4 {[%emt 0:01:27]} Bxe4 {[%emt 0:00:30]} 13. Rc1 {[%emt 0:01:09]} Qxd1 {[%emt 0:00:40]} 14. Rexd1 {[%emt 0:00:27]} Rfd8 {[%emt 0:01:02]} 15. Nd4 {[%emt 0:01:28]} Nxd4 {[%emt 0:00:25]} 16. cxd4 {[%emt 0:01:29]} Rdc8 {[%emt 0:01:12]} 17. f3 {[%emt 0:02:03]} Bf5 {[%emt 0:00:53]} 18. g4 {[%emt 0:03:48]} Bd7 {[%emt 0:01:59]} 19. b3 {[%emt 0:02:43]} Rxc1 {[%emt 0:00:40]} 20. Rxc1 {[%emt 0:00:45]} Rc8 {[%emt 0:00:44]} 21. Rc4 {[%emt 0:03:36]} Rxc4 {[%emt 0:00:37]} 22. Bxc4 {[%emt 0:00:31]} Bc6 {[%emt 0:00:24]} 23. d5 {[%emt 0:00:24]} Bd7 {[%emt 0:00:15]} 24. Bxa7 {[%emt 0:00:16]} Kf8 {[%emt 0:00:58]} 25. a4 {[%emt 0:00:54]} Ke8 {[%emt 0:00:36]} 26. Kf2 {[%emt 0:00:24]} Be5 {[%emt 0:00:33]} 27. h3 {[%emt 0:00:17]} Bd6 {[%emt 0:00:23]} 28. Ke3 {[%emt 0:00:39]} Kd8 {[%emt 0:00:34]} 29. Bb6+ {[%emt 0:00:12]} Kc8 {[%emt 0:00:56]} 30. Kd4 {[%emt 0:01:18]} f6 {[%emt 0:00:40]} 31. Ke4 {[%emt 0:02:06]} f5+ {[%emt 0:00:36]} 32. Kd4 {[%emt 0:00:41]} fxg4 {[%emt 0:00:52]} 33. hxg4 {[%emt 0:00:57]} Bc7 {[%emt 0:01:33]} 34. Bxc7 {[%emt 0:03:24]} Kxc7 {[%emt 0:01:46]} 35. g5 {[%emt 0:00:19]} Kd6 {[%emt 0:00:24]} 36. f4 {[%emt 0:00:45]} Bf5 {[%emt 0:00:12]} 37. a5 {[%emt 0:01:17]} Bc8 {[%emt 0:01:05]} 38. Bb5 {[%emt 0:00:42]} Bd7 {[%emt 0:00:34]} 39. Bxd7 {[%emt 0:00:12]} Kxd7 {[%emt 0:00:10]} 40. Ke5 {[%emt 0:00:30]} 1-0